[Event "Titled Tuesday Blitz June 13 Early 2023"]
[White "Garcia Cuenca, Victor"]
[Black "Sammed Jaykumar, Shete"]
[WhiteFideId "2250829"]
[BlackFideId "5073421"]
[WhiteElo "2329"]
[BlackElo "2296"]
[Result "0-1"]
[Round "2"]
[TimeControl "180+2"]
[Date "2023.06.13"]
[WhiteClock "0:00:14"]
[BlackClock "0:01:44"]
[Board "137"]

1. Nf3 {[%clk 0:03:00]}  d5 {[%clk 0:02:59]} 2. g3 {[%clk 0:02:58]}  g6 {[%clk 0:02:56]} 3. Bg2 {[%clk 0:02:58]}  Bg7 {[%clk 0:02:57]} 4. O-O {[%clk 0:02:59]}  Nf6 {[%clk 0:02:57]} 5. d4 {[%clk 0:03:00]}  O-O {[%clk 0:02:58]} 6. c4 {[%clk 0:03:00]}  c6 {[%clk 0:02:51]} 7. cxd5 {[%clk 0:03:00]}  Nxd5 {[%clk 0:02:51]} 8. h3 {[%clk 0:02:56]}  Nd7 {[%clk 0:02:48]} 9. e4 {[%clk 0:02:50]}  N5b6 {[%clk 0:02:48]} 10. Nc3 {[%clk 0:02:49]}  e5 {[%clk 0:02:48]} 11. d5 {[%clk 0:02:26]}  cxd5 {[%clk 0:02:44]} 12. exd5 {[%clk 0:02:27]}  f5 {[%clk 0:02:41]} 13. Ng5 {[%clk 0:02:21]}  Nf6 {[%clk 0:02:37]} 14. Qb3 {[%clk 0:02:08]}  Qc7 {[%clk 0:02:23]} 15. Ne6 {[%clk 0:01:52]}  Bxe6 {[%clk 0:02:22]} 16. dxe6 {[%clk 0:01:53]}  Qe7 {[%clk 0:02:23]} 17. Be3 {[%clk 0:01:49]}  Rfe8 {[%clk 0:02:08]} 18. Bxb6 {[%clk 0:01:37]}  axb6 {[%clk 0:02:09]} 19. Qxb6 {[%clk 0:01:37]}  e4 {[%clk 0:02:09]} 20. Nb5 {[%clk 0:01:22]}  Ra6 {[%clk 0:01:58]} 21. Qc7 {[%clk 0:01:16]}  Rxe6 {[%clk 0:01:57]} 22. Qxe7 {[%clk 0:01:10]}  R8xe7 {[%clk 0:01:58]} 23. Rac1 {[%clk 0:01:07]}  Nd5 {[%clk 0:01:56]} 24. a3 {[%clk 0:01:01]}  Bxb2 {[%clk 0:01:54]} 25. Rcd1 {[%clk 0:00:53]}  Nc3 {[%clk 0:01:53]} 26. Nxc3 {[%clk 0:00:52]}  Bxc3 {[%clk 0:01:54]} 27. Rb1 {[%clk 0:00:48]}  Bd4 {[%clk 0:01:52]} 28. Rfd1 {[%clk 0:00:45]}  Bc5 {[%clk 0:01:53]} 29. Bf1 {[%clk 0:00:39]}  Kg7 {[%clk 0:01:52]} 30. a4 {[%clk 0:00:39]}  Rf6 {[%clk 0:01:47]} 31. Rd5 {[%clk 0:00:37]}  b6 {[%clk 0:01:43]} 32. Kg2 {[%clk 0:00:33]}  f4 {[%clk 0:01:43]} 33. gxf4 {[%clk 0:00:18]}  Rxf4 {[%clk 0:01:44]} 34. Rb2 {[%clk 0:00:18]}  Ref7 {[%clk 0:01:44]} 35. Rdd2 {[%clk 0:00:17]}  e3 {[%clk 0:01:44]} 36. fxe3 {[%clk 0:00:14]}  Rxf1 {[%clk 0:01:44]} 0-1


[Site "https://www.chess.com"]

[Event "Titled Tuesday Blitz June 13 Early 2023"]
[White "Luukkonen, Tommi"]
[Black "Asavasaetakul, Chawit"]
[WhiteFideId "501808"]
[BlackFideId "6204856"]
[WhiteElo "2296"]
[BlackElo "1919"]
[Result "0-1"]
[Round "2"]
[TimeControl "180+2"]
[Date "2023.06.13"]
[WhiteClock "0:00:00"]
[BlackClock "0:00:33"]
[Board "143"]

1. e4 {[%clk 0:03:00]}  d5 {[%clk 0:02:59]} 2. exd5 {[%clk 0:02:57]}  Nf6 {[%clk 0:02:59]} 3. Nf3 {[%clk 0:02:55]}  Nxd5 {[%clk 0:02:59]} 4. d4 {[%clk 0:02:55]}  Bf5 {[%clk 0:02:59]} 5. a3 {[%clk 0:02:54]}  e6 {[%clk 0:02:59]} 6. c4 {[%clk 0:02:53]}  Nf6 {[%clk 0:02:58]} 7. Nc3 {[%clk 0:02:53]}  Be7 {[%clk 0:02:59]} 8. Bd3 {[%clk 0:02:51]}  Bxd3 {[%clk 0:02:58]} 9. Qxd3 {[%clk 0:02:52]}  Nc6 {[%clk 0:02:59]} 10. O-O {[%clk 0:02:51]}  O-O {[%clk 0:02:59]} 11. Rd1 {[%clk 0:02:50]}  Bd6 {[%clk 0:02:56]} 12. h3 {[%clk 0:02:49]}  h6 {[%clk 0:02:56]} 13. b4 {[%clk 0:02:48]}  Re8 {[%clk 0:02:56]} 14. Bb2 {[%clk 0:02:47]}  a6 {[%clk 0:02:53]} 15. Qe2 {[%clk 0:02:46]}  Nh5 {[%clk 0:02:33]} 16. Ne4 {[%clk 0:02:16]}  Nf4 {[%clk 0:02:24]} 17. Qe3 {[%clk 0:02:16]}  Ng6 {[%clk 0:02:23]} 18. g3 {[%clk 0:02:15]}  f5 {[%clk 0:02:17]} 19. Nc5 {[%clk 0:02:13]}  Bxc5 {[%clk 0:02:13]} 20. dxc5 {[%clk 0:02:14]}  Qe7 {[%clk 0:02:11]} 21. Re1 {[%clk 0:02:12]}  e5 {[%clk 0:02:08]} 22. h4 {[%clk 0:02:04]}  e4 {[%clk 0:01:59]} 23. Nd4 {[%clk 0:02:04]}  Nxd4 {[%clk 0:01:46]} 24. Bxd4 {[%clk 0:02:05]}  f4 {[%clk 0:01:45]} 25. Qc3 {[%clk 0:01:59]}  Qf7 {[%clk 0:01:41]} 26. h5 {[%clk 0:01:57]}  Nf8 {[%clk 0:01:38]} 27. gxf4 {[%clk 0:01:55]}  Qxh5 {[%clk 0:01:37]} 28. Qg3 {[%clk 0:01:54]}  Ng6 {[%clk 0:01:26]} 29. Re3 {[%clk 0:01:45]}  Re7 {[%clk 0:01:20]} 30. Rae1 {[%clk 0:01:45]}  Rae8 {[%clk 0:01:19]} 31. b5 {[%clk 0:01:41]}  axb5 {[%clk 0:01:17]} 32. cxb5 {[%clk 0:01:41]}  Nh4 {[%clk 0:01:16]} 33. Be5 {[%clk 0:01:11]}  Nf3+ {[%clk 0:01:11]} 34. Rxf3 {[%clk 0:01:11]}  exf3 {[%clk 0:00:59]} 35. Re3 {[%clk 0:01:10]}  Rf7 {[%clk 0:00:59]} 36. a4 {[%clk 0:00:58]}  Re6 {[%clk 0:00:58]} 37. Qh2 {[%clk 0:00:48]}  Rg6+ {[%clk 0:00:54]} 38. Kh1 {[%clk 0:00:48]}  Qf5 {[%clk 0:00:51]} 39. Re1 {[%clk 0:00:45]}  Rg2 {[%clk 0:00:43]} 40. Qh4 {[%clk 0:00:43]}  Kh7 {[%clk 0:00:37]} 41. Rg1 {[%clk 0:00:29]}  Rxg1+ {[%clk 0:00:35]} 42. Kxg1 {[%clk 0:00:00]}  Rd7 {[%clk 0:00:33]} 0-1


[Site "https://www.chess.com"]

[Event "Titled Tuesday Blitz June 13 Early 2023"]
[White "Herzog2012"]
[Black "Schnaider, Ilan"]
[BlackFideId "169013"]
[WhiteElo "2396"]
[BlackElo "2224"]
[Result "0-1"]
[Round "2"]
[TimeControl "180+2"]
[Date "2023.06.13"]
[WhiteClock "0:00:02"]
[BlackClock "0:00:04"]
[Board "145"]

1. e4 {[%clk 0:03:00]}  c5 {[%clk 0:02:56]} 2. Nf3 {[%clk 0:03:00]}  d6 {[%clk 0:02:56]} 3. d4 {[%clk 0:03:01]}  cxd4 {[%clk 0:02:57]} 4. Nxd4 {[%clk 0:03:01]}  Nf6 {[%clk 0:02:57]} 5. Nc3 {[%clk 0:03:02]}  a6 {[%clk 0:02:58]} 6. Bg5 {[%clk 0:03:01]}  e6 {[%clk 0:02:56]} 7. f4 {[%clk 0:03:00]}  Be7 {[%clk 0:02:57]} 8. Qf3 {[%clk 0:02:58]}  Qc7 {[%clk 0:02:56]} 9. O-O-O {[%clk 0:02:51]}  Nbd7 {[%clk 0:02:57]} 10. g4 {[%clk 0:02:51]}  h6 {[%clk 0:02:56]} 11. Bxf6 {[%clk 0:02:49]}  Bxf6 {[%clk 0:02:55]} 12. h4 {[%clk 0:02:48]}  b5 {[%clk 0:02:51]} 13. g5 {[%clk 0:02:44]}  Bxd4 {[%clk 0:02:51]} 14. Rxd4 {[%clk 0:02:43]}  Qc5 {[%clk 0:02:52]} 15. Rd2 {[%clk 0:02:41]}  Nb6 {[%clk 0:02:52]} 16. f5 {[%clk 0:02:12]}  exf5 {[%clk 0:02:09]} 17. exf5 {[%clk 0:02:09]}  Bxf5 {[%clk 0:02:07]} 18. Nd5 {[%clk 0:02:00]}  Nxd5 {[%clk 0:01:47]} 19. Qxf5 {[%clk 0:01:52]}  Ne7 {[%clk 0:01:39]} 20. Qe4 {[%clk 0:01:48]}  d5 {[%clk 0:01:27]} 21. Qe5 {[%clk 0:01:44]}  hxg5 {[%clk 0:01:16]} 22. Qxg7 {[%clk 0:01:37]}  Rg8 {[%clk 0:01:14]} 23. Qe5 {[%clk 0:01:07]}  g4 {[%clk 0:01:06]} 24. Bg2 {[%clk 0:00:58]}  Rc8 {[%clk 0:00:54]} 25. h5 {[%clk 0:00:50]}  d4 {[%clk 0:00:41]} 26. Qe4 {[%clk 0:00:18]}  Kf8 {[%clk 0:00:32]} 27. h6 {[%clk 0:00:18]}  Rg6 {[%clk 0:00:24]} 28. Rxd4 {[%clk 0:00:04]}  Re6 {[%clk 0:00:16]} 29. Qd3 {[%clk 0:00:04]}  Nf5 {[%clk 0:00:04]} 30. Rd8+ {[%clk 0:00:03]}  Rxd8 {[%clk 0:00:05]} 31. Qxd8+ {[%clk 0:00:04]}  Re8 {[%clk 0:00:06]} 32. Qd3 {[%clk 0:00:03]}  Nd4 {[%clk 0:00:04]} 33. Kb1 {[%clk 0:00:02]}  Kg8 {[%clk 0:00:01]} 34. h7+ {[%clk 0:00:02]}  Kh8 {[%clk 0:00:02]} 35. c3 {[%clk 0:00:02]}  Qf5 {[%clk 0:00:02]} 36. Qxf5 {[%clk 0:00:01]}  Nxf5 {[%clk 0:00:03]} 37. Rf1 {[%clk 0:00:01]}  Ne3 {[%clk 0:00:03]} 38. Re1 {[%clk 0:00:02]}  f5 {[%clk 0:00:03]} 39. Bc6 {[%clk 0:00:03]}  Re6 {[%clk 0:00:03]} 40. Bd7 {[%clk 0:00:03]}  Re7 {[%clk 0:00:02]} 41. Bxf5 {[%clk 0:00:03]}  Nxf5 {[%clk 0:00:03]} 42. Rf1 {[%clk 0:00:04]}  Ne3 {[%clk 0:00:02]} 43. Rh1 {[%clk 0:00:03]}  g3 {[%clk 0:00:02]} 44. Kc1 {[%clk 0:00:04]}  g2 {[%clk 0:00:03]} 45. Rg1 {[%clk 0:00:04]}  Kxh7 {[%clk 0:00:04]} 46. Kd2 {[%clk 0:00:04]}  Kg6 {[%clk 0:00:04]} 47. Ke2 {[%clk 0:00:04]}  Kg5 {[%clk 0:00:03]} 48. Kf3 {[%clk 0:00:05]}  Kf5 {[%clk 0:00:03]} 49. Re1 {[%clk 0:00:05]}  Re4 {[%clk 0:00:03]} 50. Kf2 {[%clk 0:00:02]}  Ng4+ {[%clk 0:00:04]} 0-1


[Site "https://www.chess.com"]

[Event "Titled Tuesday Blitz June 13 Early 2023"]
[White "Ezat, Mohamed"]
[Black "Gracia Alvarez, Gerardo Antonio"]
[WhiteFideId "10600906"]
[BlackFideId "5109124"]
[WhiteElo "2372"]
[BlackElo "2160"]
[Result "0-1"]
[Round "2"]
[TimeControl "180+2"]
[Date "2023.06.13"]
[WhiteClock "0:00:27"]
[BlackClock "0:00:16"]
[Board "147"]

1. d4 {[%clk 0:02:57]}  Nf6 {[%clk 0:02:58]} 2. Nc3 {[%clk 0:02:57]}  d5 {[%clk 0:02:57]} 3. Bg5 {[%clk 0:02:57]}  g6 {[%clk 0:02:53]} 4. Bxf6 {[%clk 0:02:56]}  exf6 {[%clk 0:02:53]} 5. e3 {[%clk 0:02:56]}  c6 {[%clk 0:02:46]} 6. a3 {[%clk 0:02:55]}  Bd6 {[%clk 0:02:45]} 7. h4 {[%clk 0:02:55]}  h5 {[%clk 0:02:44]} 8. Bd3 {[%clk 0:02:52]}  Nd7 {[%clk 0:02:42]} 9. g3 {[%clk 0:02:47]}  f5 {[%clk 0:02:42]} 10. Nf3 {[%clk 0:02:46]}  Nf6 {[%clk 0:02:41]} 11. Ng5 {[%clk 0:02:46]}  Qe7 {[%clk 0:02:38]} 12. Qe2 {[%clk 0:02:42]}  a5 {[%clk 0:02:34]} 13. Kf1 {[%clk 0:02:40]}  Ne4 {[%clk 0:02:29]} 14. Bxe4 {[%clk 0:02:37]}  fxe4 {[%clk 0:02:28]} 15. Kg2 {[%clk 0:02:35]}  f6 {[%clk 0:02:19]} 16. Nh3 {[%clk 0:02:31]}  Bg4 {[%clk 0:02:19]} 17. Qd2 {[%clk 0:02:31]}  Bf3+ {[%clk 0:02:19]} 18. Kh2 {[%clk 0:02:31]}  g5 {[%clk 0:02:06]} 19. Ne2 {[%clk 0:02:26]}  Kf7 {[%clk 0:01:50]} 20. Nhg1 {[%clk 0:02:07]}  Bxh1 {[%clk 0:01:43]} 21. Kxh1 {[%clk 0:02:06]}  gxh4 {[%clk 0:01:42]} 22. Nh3 {[%clk 0:01:56]}  hxg3 {[%clk 0:01:40]} 23. Nxg3 {[%clk 0:01:53]}  Qe6 {[%clk 0:01:36]} 24. Ng1 {[%clk 0:01:18]}  Rag8 {[%clk 0:01:10]} 25. Rf1 {[%clk 0:00:53]}  h4 {[%clk 0:01:08]} 26. N3e2 {[%clk 0:00:51]}  Qg4 {[%clk 0:01:06]} 27. Nf4 {[%clk 0:00:50]}  Bxf4 {[%clk 0:01:01]} 28. f3 {[%clk 0:00:50]}  Bxe3 {[%clk 0:00:53]} 29. Qe2 {[%clk 0:00:39]}  exf3 {[%clk 0:00:28]} 30. Nxf3 {[%clk 0:00:38]}  Qh3+ {[%clk 0:00:28]} 31. Nh2 {[%clk 0:00:38]}  Rg3 {[%clk 0:00:20]} 32. c4 {[%clk 0:00:27]}  Rhg8 {[%clk 0:00:18]} 33. Qh5+ {[%clk 0:00:27]}  Ke7 {[%clk 0:00:18]} 34. Qh7+ {[%clk 0:00:27]}  R8g7 {[%clk 0:00:17]} 35. Qc2 {[%clk 0:00:27]}  Rg1+ {[%clk 0:00:16]} 36. Rxg1 {[%clk 0:00:27]}  Rxg1# {[%clk 0:00:16]} 0-1


[Site "https://www.chess.com"]

[Event "Titled Tuesday Blitz June 13 Early 2023"]
[White "San Thit Lwin"]
[Black "robertoalejandro10"]
[WhiteFideId "13001272"]
[WhiteElo "2232"]
[BlackElo "2587"]
[Result "0-1"]
[Round "2"]
[TimeControl "180+2"]
[Date "2023.06.13"]
[WhiteClock "0:00:00"]
[BlackClock "0:00:44"]
[Board "148"]

1. Nf3 {[%clk 0:03:00]}  Nf6 {[%clk 0:02:56]} 2. c4 {[%clk 0:03:00]}  c5 {[%clk 0:02:50]} 3. Nc3 {[%clk 0:03:00]}  g6 {[%clk 0:02:50]} 4. d4 {[%clk 0:02:59]}  cxd4 {[%clk 0:02:50]} 5. Nxd4 {[%clk 0:03:00]}  Nc6 {[%clk 0:02:48]} 6. e4 {[%clk 0:03:00]}  Bg7 {[%clk 0:02:49]} 7. Be3 {[%clk 0:03:00]}  Ng4 {[%clk 0:02:49]} 8. Qxg4 {[%clk 0:02:59]}  Nxd4 {[%clk 0:02:49]} 9. Qd1 {[%clk 0:02:59]}  Ne6 {[%clk 0:02:49]} 10. Qd2 {[%clk 0:02:58]}  Qa5 {[%clk 0:02:49]} 11. Be2 {[%clk 0:02:53]}  Bxc3 {[%clk 0:02:47]} 12. bxc3 {[%clk 0:02:52]}  b6 {[%clk 0:02:47]} 13. O-O {[%clk 0:02:49]}  Bb7 {[%clk 0:02:47]} 14. f3 {[%clk 0:02:33]}  Rc8 {[%clk 0:02:43]} 15. Rfd1 {[%clk 0:02:31]}  d6 {[%clk 0:02:43]} 16. Rab1 {[%clk 0:02:30]}  Ba6 {[%clk 0:02:39]} 17. f4 {[%clk 0:01:44]}  Bxc4 {[%clk 0:02:08]} 18. e5 {[%clk 0:01:34]}  Bxe2 {[%clk 0:02:01]} 19. exd6 {[%clk 0:01:34]}  exd6 {[%clk 0:01:37]} 20. Qxe2 {[%clk 0:01:33]}  O-O {[%clk 0:01:31]} 21. Rxd6 {[%clk 0:01:29]}  Qxc3 {[%clk 0:01:29]} 22. f5 {[%clk 0:01:17]}  Ng7 {[%clk 0:01:30]} 23. Bd4 {[%clk 0:01:09]}  Qc2 {[%clk 0:01:26]} 24. Qxc2 {[%clk 0:01:07]}  Rxc2 {[%clk 0:01:27]} 25. Bxg7 {[%clk 0:00:30]}  Kxg7 {[%clk 0:01:25]} 26. f6+ {[%clk 0:00:25]}  Kh6 {[%clk 0:01:22]} 27. Rb3 {[%clk 0:00:24]}  g5 {[%clk 0:01:20]} 28. Ra3 {[%clk 0:00:20]}  Re8 {[%clk 0:01:13]} 29. h4 {[%clk 0:00:18]}  gxh4 {[%clk 0:00:59]} 30. Rxa7 {[%clk 0:00:16]}  Ree2 {[%clk 0:00:46]} 31. Rxf7 {[%clk 0:00:13]}  Rxg2+ {[%clk 0:00:46]} 32. Kh1 {[%clk 0:00:12]}  Rh2+ {[%clk 0:00:45]} 33. Kg1 {[%clk 0:00:12]}  Rcg2+ {[%clk 0:00:45]} 34. Kf1 {[%clk 0:00:11]}  Rxa2 {[%clk 0:00:45]} 35. Rg7 {[%clk 0:00:00]}  Ra1+ {[%clk 0:00:44]} 0-1


[Site "https://www.chess.com"]

[Event "Titled Tuesday Blitz June 13 Early 2023"]
[White "Dixit, Nikhil"]
[Black "Itkis, Boris"]
[WhiteFideId "5059534"]
[BlackFideId "1209167"]
[WhiteElo "2207"]
[BlackElo "2219"]
[Result "1-0"]
[Round "2"]
[TimeControl "180+2"]
[Date "2023.06.13"]
[WhiteClock "0:01:08"]
[BlackClock "0:00:40"]
[Board "149"]

1. e4 {[%clk 0:03:00]}  e6 {[%clk 0:02:59]} 2. d4 {[%clk 0:02:59]}  d5 {[%clk 0:03:00]} 3. e5 {[%clk 0:03:00]}  c5 {[%clk 0:02:59]} 4. c3 {[%clk 0:02:56]}  Nc6 {[%clk 0:03:00]} 5. Nf3 {[%clk 0:02:54]}  Qb6 {[%clk 0:03:00]} 6. Bd3 {[%clk 0:02:48]}  cxd4 {[%clk 0:02:57]} 7. O-O {[%clk 0:02:48]}  Bd7 {[%clk 0:02:56]} 8. Nbd2 {[%clk 0:02:41]}  dxc3 {[%clk 0:02:55]} 9. bxc3 {[%clk 0:02:41]}  Nge7 {[%clk 0:02:55]} 10. Nb3 {[%clk 0:02:36]}  Ng6 {[%clk 0:02:53]} 11. Re1 {[%clk 0:02:36]}  a6 {[%clk 0:02:52]} 12. h4 {[%clk 0:02:28]}  Qc7 {[%clk 0:02:51]} 13. Qe2 {[%clk 0:02:26]}  f6 {[%clk 0:02:49]} 14. exf6 {[%clk 0:02:25]}  gxf6 {[%clk 0:02:48]} 15. Nbd4 {[%clk 0:02:23]}  Nge5 {[%clk 0:02:37]} 16. Nxe5 {[%clk 0:02:22]}  Nxe5 {[%clk 0:02:35]} 17. Qh5+ {[%clk 0:02:19]}  Kd8 {[%clk 0:02:35]} 18. Bf4 {[%clk 0:02:15]}  Bd6 {[%clk 0:02:30]} 19. Rad1 {[%clk 0:01:49]}  Nxd3 {[%clk 0:01:40]} 20. Bxd6 {[%clk 0:01:48]}  Qxd6 {[%clk 0:01:41]} 21. Rxd3 {[%clk 0:01:48]}  Rc8 {[%clk 0:01:38]} 22. Qf7 {[%clk 0:01:42]}  e5 {[%clk 0:01:13]} 23. Nf5 {[%clk 0:01:24]}  Qe6 {[%clk 0:01:13]} 24. Qxe6 {[%clk 0:01:16]}  Bxe6 {[%clk 0:01:13]} 25. Ne3 {[%clk 0:01:17]}  Rc5 {[%clk 0:01:03]} 26. Red1 {[%clk 0:01:12]}  Kc8 {[%clk 0:01:00]} 27. Nxd5 {[%clk 0:01:13]}  Bxd5 {[%clk 0:00:58]} 28. Rxd5 {[%clk 0:01:14]}  Rxc3 {[%clk 0:00:59]} 29. Rd6 {[%clk 0:01:13]}  Rf8 {[%clk 0:00:56]} 30. Rd7 {[%clk 0:01:13]}  Rc7 {[%clk 0:00:54]} 31. R7d6 {[%clk 0:01:12]}  Kb8 {[%clk 0:00:52]} 32. g3 {[%clk 0:01:12]}  Rfc8 {[%clk 0:00:51]} 33. Rxf6 {[%clk 0:01:11]}  Rc2 {[%clk 0:00:48]} 34. Rd7 {[%clk 0:01:10]}  R8c6 {[%clk 0:00:45]} 35. Rxc6 {[%clk 0:01:07]}  Rxc6 {[%clk 0:00:45]} 36. Rxh7 {[%clk 0:01:08]}  Rc2 {[%clk 0:00:45]} 37. h5 {[%clk 0:01:08]}  Rxa2 {[%clk 0:00:45]} 38. h6 {[%clk 0:01:08]}  Ka7 {[%clk 0:00:40]} 39. Rg7 {[%clk 0:01:08]} 1-0


[Site "https://www.chess.com"]

[Event "Titled Tuesday Blitz June 13 Early 2023"]
[White "Fajdetic, Hrvoje"]
[Black "Bayo Milagro, Alvaro"]
[WhiteFideId "14501945"]
[BlackFideId "22275240"]
[WhiteElo "2185"]
[BlackElo "2270"]
[Result "1-0"]
[Round "2"]
[TimeControl "180+2"]
[Date "2023.06.13"]
[WhiteClock "0:00:10"]
[BlackClock "0:00:40"]
[Board "150"]

1. f4 {[%clk 0:02:53]}  Nf6 {[%clk 0:02:59]} 2. d3 {[%clk 0:02:51]}  d5 {[%clk 0:02:58]} 3. e3 {[%clk 0:02:51]}  g6 {[%clk 0:02:58]} 4. Nf3 {[%clk 0:02:52]}  Bg7 {[%clk 0:02:59]} 5. Be2 {[%clk 0:02:52]}  O-O {[%clk 0:02:59]} 6. O-O {[%clk 0:02:53]}  c5 {[%clk 0:03:00]} 7. Qe1 {[%clk 0:02:52]}  Nc6 {[%clk 0:02:56]} 8. Ne5 {[%clk 0:02:53]}  Nxe5 {[%clk 0:02:52]} 9. fxe5 {[%clk 0:02:54]}  Nd7 {[%clk 0:02:52]} 10. d4 {[%clk 0:02:54]}  f6 {[%clk 0:02:52]} 11. exf6 {[%clk 0:02:13]}  Bxf6 {[%clk 0:02:47]} 12. c3 {[%clk 0:01:53]}  e5 {[%clk 0:02:44]} 13. Bf3 {[%clk 0:01:18]}  e4 {[%clk 0:02:43]} 14. Be2 {[%clk 0:01:14]}  Kg7 {[%clk 0:02:41]} 15. Na3 {[%clk 0:01:12]}  a6 {[%clk 0:02:38]} 16. Nc2 {[%clk 0:01:12]}  c4 {[%clk 0:02:35]} 17. b3 {[%clk 0:01:09]}  b5 {[%clk 0:02:35]} 18. a4 {[%clk 0:00:57]}  Nb6 {[%clk 0:02:24]} 19. axb5 {[%clk 0:00:54]}  axb5 {[%clk 0:02:22]} 20. Rxa8 {[%clk 0:00:53]}  Nxa8 {[%clk 0:02:23]} 21. bxc4 {[%clk 0:00:46]}  bxc4 {[%clk 0:02:23]} 22. Nb4 {[%clk 0:00:45]}  Nb6 {[%clk 0:02:22]} 23. Ba3 {[%clk 0:00:44]}  Rf7 {[%clk 0:02:20]} 24. Nc6 {[%clk 0:00:37]}  Qe8 {[%clk 0:02:19]} 25. Ne5 {[%clk 0:00:36]}  Bxe5 {[%clk 0:02:19]} 26. dxe5 {[%clk 0:00:36]}  Be6 {[%clk 0:02:10]} 27. Rxf7+ {[%clk 0:00:30]}  Qxf7 {[%clk 0:02:09]} 28. Qh4 {[%clk 0:00:29]}  Nd7 {[%clk 0:01:53]} 29. Qd8 {[%clk 0:00:28]}  h5 {[%clk 0:01:37]} 30. Bd6 {[%clk 0:00:24]}  h4 {[%clk 0:01:28]} 31. Qxh4 {[%clk 0:00:21]}  Qe8 {[%clk 0:01:25]} 32. Qg5 {[%clk 0:00:17]}  Qa8 {[%clk 0:01:20]} 33. h4 {[%clk 0:00:17]}  Qa1+ {[%clk 0:01:02]} 34. Kh2 {[%clk 0:00:17]}  Qe1 {[%clk 0:00:58]} 35. Bh5 {[%clk 0:00:15]}  Bf5 {[%clk 0:00:51]} 36. Bxg6 {[%clk 0:00:14]}  Bxg6 {[%clk 0:00:51]} 37. h5 {[%clk 0:00:15]}  Nf8 {[%clk 0:00:50]} 38. Bxf8+ {[%clk 0:00:14]}  Kxf8 {[%clk 0:00:51]} 39. Qf6+ {[%clk 0:00:13]}  Ke8 {[%clk 0:00:50]} 40. Qxg6+ {[%clk 0:00:13]}  Kd8 {[%clk 0:00:49]} 41. Qd6+ {[%clk 0:00:12]}  Ke8 {[%clk 0:00:48]} 42. Qe6+ {[%clk 0:00:09]}  Kd8 {[%clk 0:00:48]} 43. Qf6+ {[%clk 0:00:09]}  Ke8 {[%clk 0:00:40]} 44. e6 {[%clk 0:00:10]} 1-0


[Site "https://www.chess.com"]

[Event "Titled Tuesday Blitz June 13 Early 2023"]
[White "Moksh Amit Doshi"]
[Black "Rodriguez, Santiago"]
[WhiteFideId "25064967"]
[BlackFideId "3000591"]
[WhiteElo "2297"]
[BlackElo "2249"]
[Result "1-0"]
[Round "2"]
[TimeControl "180+2"]
[Date "2023.06.13"]
[WhiteClock "0:00:21"]
[BlackClock "0:00:06"]
[Board "151"]

1. d4 {[%clk 0:02:48]}  Nf6 {[%clk 0:02:59]} 2. c4 {[%clk 0:02:45]}  e6 {[%clk 0:02:59]} 3. g3 {[%clk 0:02:44]}  d5 {[%clk 0:02:58]} 4. Bg2 {[%clk 0:02:44]}  Be7 {[%clk 0:02:59]} 5. Nf3 {[%clk 0:02:44]}  O-O {[%clk 0:02:59]} 6. O-O {[%clk 0:02:45]}  dxc4 {[%clk 0:03:00]} 7. Qc2 {[%clk 0:02:45]}  b6 {[%clk 0:02:59]} 8. Bg5 {[%clk 0:02:44]}  Nbd7 {[%clk 0:02:53]} 9. Ne5 {[%clk 0:02:32]}  Nxe5 {[%clk 0:02:53]} 10. Bxf6 {[%clk 0:02:29]}  gxf6 {[%clk 0:02:51]} 11. Bxa8 {[%clk 0:02:07]}  Qxd4 {[%clk 0:02:51]} 12. Nc3 {[%clk 0:02:04]}  c6 {[%clk 0:02:44]} 13. Rad1 {[%clk 0:01:29]}  Qg4 {[%clk 0:02:31]} 14. f4 {[%clk 0:01:25]}  Bc5+ {[%clk 0:02:29]} 15. Kg2 {[%clk 0:01:24]}  Ng6 {[%clk 0:02:28]} 16. Ne4 {[%clk 0:01:21]}  Be7 {[%clk 0:02:10]} 17. Bxc6 {[%clk 0:01:19]}  e5 {[%clk 0:01:58]} 18. e3 {[%clk 0:01:15]}  Bf5 {[%clk 0:01:44]} 19. Qxc4 {[%clk 0:01:14]}  Rc8 {[%clk 0:01:37]} 20. Nf2 {[%clk 0:01:13]}  Qh5 {[%clk 0:01:13]} 21. Rc1 {[%clk 0:00:33]}  Bc5 {[%clk 0:01:08]} 22. Bf3 {[%clk 0:00:31]}  Qh6 {[%clk 0:01:03]} 23. Qe2 {[%clk 0:00:28]}  Re8 {[%clk 0:00:56]} 24. Bg4 {[%clk 0:00:28]}  Bxg4 {[%clk 0:00:33]} 25. Nxg4 {[%clk 0:00:29]}  Qg7 {[%clk 0:00:28]} 26. fxe5 {[%clk 0:00:29]}  Rxe5 {[%clk 0:00:28]} 27. Nxe5 {[%clk 0:00:28]}  fxe5 {[%clk 0:00:28]} 28. Rcd1 {[%clk 0:00:26]}  Qh6 {[%clk 0:00:26]} 29. Qf3 {[%clk 0:00:24]}  Qf8 {[%clk 0:00:22]} 30. Rd7 {[%clk 0:00:24]}  Be7 {[%clk 0:00:18]} 31. h4 {[%clk 0:00:21]}  Qe8 {[%clk 0:00:13]} 32. Rxa7 {[%clk 0:00:21]}  Bxh4 {[%clk 0:00:10]} 33. Qxf7+ {[%clk 0:00:20]}  Qxf7 {[%clk 0:00:06]} 34. Rfxf7 {[%clk 0:00:21]} 1-0


[Site "https://www.chess.com"]